fUST/lending_fUST_20250903
["ID","MTS","AMOUNT","RATE_DAILY","PERIOD"]
[383201719,1756881047274,-480.0,0.00013968,2]
[383201720,1756881047284,-399.56277113,0.0001397,2]
[383201723,1756881047293,-513.3,0.0001397,2]
[383201724,1756881047303,-381.87211716,0.0001397,2]
[383201727,1756881047313,-480.0,0.0001397,2]
[383201729,1756881047323,-480.0,0.0001397,2]
[383201731,1756881047333,-480.0,0.0001397,2]
[383201732,1756881047342,-480.0,0.0001397,2]
[383201735,1756881047351,-480.0,0.0001397,2]
[383201736,1756881047362,-480.0,0.0001397,2]
[383201739,1756881047371,-480.0,0.0001397,2]
[383201741,1756881047382,-482.26,0.0001397,2]
[383201743,1756881047392,-234.25082911,0.0001397,2]
[383201744,1756881047402,-480.0,0.0001397,2]
[383201746,1756881047413,-480.0,0.0001397,2]
[383201748,1756881047423,-480.0,0.0001397,2]
[383201751,1756881047434,-480.0,0.0001397,2]
[383201753,1756881047444,-480.0,0.0001397,2]
[383201755,1756881047453,-184.8656637,0.0001397,2]
[383201756,1756881047464,-480.0,0.0001397,2]
[383201758,1756881047473,-480.0,0.0001397,2]
[383201760,1756881047484,-480.0,0.0001397,2]
[383201763,1756881047497,-480.0,0.0001397,2]
[383201765,1756881047506,-480.0,0.0001397,2]
[383201767,1756881047516,-249.3699655,0.0001397,2]
[383201769,1756881047525,-371.46396305,0.0001397,2]
[383201771,1756881047535,-480.0,0.0001397,2]
[383201773,1756881047546,-480.0,0.0001397,2]
[383201775,1756881047556,-482.06700503,0.0001397,2]
[383201777,1756881047569,-549.41,0.0001397,2]
[383201779,1756881047579,-480.0,0.0001397,2]
[383201781,1756881047588,-480.0,0.0001397,2]
[383201783,1756881047598,-480.0,0.0001397,2]
[383201785,1756881047607,-480.0,0.0001397,2]
[383201787,1756881047617,-480.0,0.0001397,2]
[383201789,1756881047626,-481.54659297,0.0001397,2]
[383201791,1756881047635,-480.0,0.0001397,2]
[383201793,1756881047645,-480.0,0.0001397,2]
[383201795,1756881047655,-480.0,0.0001397,2]
[383201797,1756881047664,-480.0,0.0001397,2]
[383201799,1756881047673,-480.0,0.0001397,2]
[383201801,1756881047683,-480.0,0.0001397,2]
[383201803,1756881047692,-480.0,0.0001397,2]
[383201805,1756881047702,-480.0,0.0001397,2]
[383201807,1756881047711,-480.0,0.0001397,2]
[383201809,1756881047720,-480.0,0.0001397,2]
[383201811,1756881047730,-480.0,0.0001397,2]
[383201813,1756881047740,-585.8,0.0001397,2]
[383201815,1756881047750,-480.0,0.0001397,2]
[383201817,1756881047759,-481.45449761,0.0001397,2]
[383201819,1756881047769,-482.94152083,0.0001397,2]
[383201821,1756881047779,-480.0,0.0001397,2]
[383201823,1756881047789,-480.0,0.0001397,2]
[383201825,1756881047799,-386.54289501,0.0001397,2]
[383201827,1756881047810,-190.13547588,0.0001397,2]
[383201829,1756881047821,-480.4899117,0.0001397,2]
[383201831,1756881047831,-480.0,0.0001397,2]
[383201833,1756881047841,-480.0,0.0001397,2]
[383201835,1756881047851,-480.0,0.0001397,2]
[383201837,1756881047861,-480.0,0.0001397,2]
[383201839,1756881047871,-480.0,0.0001397,2]
[383201841,1756881047881,-544.78617761,0.0001397,2]
[383201843,1756881047890,-480.0,0.0001397,2]
[383201845,1756881047899,-276.50392686,0.0001397,2]
[383201847,1756881047909,-480.0,0.0001397,2]
[383201849,1756881047922,-153.099279,0.0001397,2]
[383201851,1756881047932,-480.0,0.0001397,2]
[383201853,1756881047942,-154.673471,0.0001397,2]
[383201855,1756881047951,-151.0,0.0001397,2]
[383201857,1756881047961,-480.0,0.0001397,2]
[383201859,1756881047970,-480.0,0.0001397,2]
[383201861,1756881047980,-152.08947,0.0001397,2]
[383201863,1756881047990,-289.208033,0.0001397,2]
[383201865,1756881047999,-480.0,0.0001397,2]
[383201867,1756881048009,-623.68467902,0.0001397,2]
[383201869,1756881048018,-480.0,0.0001397,2]
[383201871,1756881048028,-480.0,0.0001397,2]
[383201873,1756881048037,-570.52,0.0001397,2]
[383201875,1756881048047,-152.247185,0.0001397,2]
[383201877,1756881048057,-480.0,0.0001397,2]
[383201879,1756881048067,-480.0,0.0001397,2]
[383201881,1756881048077,-156.811659,0.0001397,2]
[383201883,1756881048087,-480.0,0.0001397,2]
[383201885,1756881048098,-480.0,0.0001397,2]
[383201887,1756881048108,-480.0,0.0001397,2]
[383201889,1756881048118,-480.0,0.0001397,2]
[383201891,1756881048127,-151.0,0.0001397,2]
[383201893,1756881048138,-480.0,0.0001397,2]
[383201895,1756881048148,-480.0,0.0001397,2]
[383201897,1756881048159,-480.0,0.0001397,2]
[383201899,1756881048169,-480.0,0.0001397,2]
[383201901,1756881048179,-480.0,0.0001397,2]
[383201903,1756881048189,-480.0,0.0001397,2]
[383201905,1756881048198,-518.0,0.0001397,2]
[383201907,1756881048208,-356.8862492,0.0001397,2]
[383201909,1756881048217,-480.0,0.0001397,2]
[383201911,1756881048228,-151.0,0.0001397,2]
[383201913,1756881048238,-480.0,0.0001397,2]
[383201915,1756881048247,-579.03265243,0.0001397,2]
[383201918,1756881048256,-151.0,0.0001397,2]
[383201920,1756881048266,-151.0,0.0001397,2]
[383201922,1756881048275,-151.0,0.0001397,2]
[383201924,1756881048287,-480.0,0.0001397,2]
[383201926,1756881048296,-480.0,0.0001397,2]
[383201928,1756881048306,-601.75679412,0.0001397,2]
[383201930,1756881048315,-480.0,0.0001397,2]
[383201932,1756881048325,-480.0,0.0001397,2]
[383201934,1756881048335,-480.0,0.0001397,2]
[383201936,1756881048345,-480.0,0.0001397,2]
[383201938,1756881048355,-480.0,0.0001397,2]
[383201940,1756881048365,-480.0,0.0001397,2]
[383201942,1756881048375,-480.0,0.0001397,2]
[383201944,1756881048384,-496.97641389,0.0001397,2]
[383201946,1756881048394,-480.0,0.0001397,2]
[383201948,1756881048403,-521.81810482,0.0001397,2]
[383201950,1756881048413,-480.0,0.0001397,2]
[383201952,1756881048423,-480.0,0.0001397,2]
[383201954,1756881048433,-480.0,0.0001397,2]
[383201956,1756881048442,-480.0,0.0001397,2]
[383201958,1756881048451,-480.0,0.0001397,2]
[383201960,1756881048461,-480.0,0.0001397,2]
[383201962,1756881048471,-482.24831046,0.0001397,2]
[383201964,1756881048481,-498.58,0.0001397,2]
[383201966,1756881048491,-487.26,0.0001397,2]
[383201968,1756881048501,-480.0,0.0001397,2]
[383201970,1756881048511,-366.231228,0.00013972,2]
[383201972,1756881048520,-181.0,0.0001398,2]
[383201974,1756881048530,-347.48,0.00014124,2]
[383201976,1756881048540,-424.03161361,0.00014124,2]
[383201978,1756881048554,-55.96838639,0.00014124,2]
[383201980,1756881048564,-416.99094736,0.00014126,2]
[383203112,1756881060283,-481.1465623,0.00013711,2]
[383203116,1756881060320,-481.1465623,0.0001385,2]
[383203121,1756881060357,-480.0,0.00013852,2]
[383203126,1756881060392,-480.0,0.00013852,2]
[383203131,1756881060427,-480.0,0.0001386,2]
[383203150,1756881060591,-480.0,0.00013868,2]
[383203155,1756881060629,-500.0,0.00013868,2]
[383203160,1756881060666,-500.0,0.00013868,2]
[383203164,1756881060703,-458.64761094,0.00013868,2]
[383203170,1756881060763,-306.22,0.00013953,2]
[383203176,1756881060807,-225.68852892,0.00013968,2]
[383203187,1756881060908,-254.31147108,0.00013968,2]
[383203192,1756881060943,-63.00905264,0.00014126,2]
[383203197,1756881060979,-480.0,0.00014126,2]
[383203201,1756881061015,-550.9,0.00014126,2]
[383203206,1756881061054,-528.58,0.00014126,2]
[383203211,1756881061105,-893.85,0.00014126,2]
[383203216,1756881061140,-480.0,0.00014126,2]
[383203220,1756881061174,-480.0,0.00014126,2]
[383203225,1756881061207,-599.49,0.00014126,2]
[383203230,1756881061244,-480.0,0.00014126,2]
[383203234,1756881061279,-70.96895256,0.00014126,2]
[383204084,1756881070213,-480.0,0.00013721,2]
[383204089,1756881070251,-480.0,0.0001386,2]
[383204094,1756881070287,-638.33,0.00013867,2]
[383204098,1756881070321,-237.79104744,0.00014126,2]
[383204103,1756881070358,-545.49,0.00014126,2]
[383204107,1756881070392,-480.0,0.00014134,2]
[383204112,1756881070426,-515.57,0.00014134,2]
[383204116,1756881070460,-578.10496768,0.00014134,2]
[383204136,1756881070625,-480.0,0.00014134,2]
[383204140,1756881070660,-300.0,0.0001414,2]
[383204145,1756881070695,-105.12796976,0.00014141,2]
[383204174,1756881070963,-319.18203024,0.00014141,2]
[383204179,1756881070997,-480.0,0.00014141,2]
[383204184,1756881071030,-264.02,0.00014141,2]
[383204189,1756881071062,-238.27,0.00014141,2]
[383204194,1756881071099,-480.0,0.00014141,2]
[383204198,1756881071133,-480.0,0.00014141,2]
[383204203,1756881071168,-446.21,0.00014141,2]
[383204207,1756881071203,-202.96,0.00014141,2]
[383204212,1756881071238,-561.64,0.00014141,2]
[383204217,1756881071272,-480.0,0.00014141,2]
[383204221,1756881071304,-481.22504724,0.00014141,2]
[383204226,1756881071338,-480.0,0.00014141,2]
[383204237,1756881071434,-539.47,0.00014141,2]
[383204242,1756881071468,-1363.67,0.00014141,2]
[383204246,1756881071501,-640.45,0.00014141,2]
[383204251,1756881071535,-519.71072162,0.00014141,2]
[383204255,1756881071568,-480.0,0.00014141,2]
[383204260,1756881071602,-638.33,0.00014141,2]
[383204265,1756881071635,-198.38,0.00014142,2]
[383204269,1756881071667,-181.3,0.00014142,2]
[383204274,1756881071700,-397.38855676,0.00014142,2]
[383204289,1756881071834,-82.61144324,0.00014142,2]
[383204293,1756881071868,-611.05,0.00014142,2]
[383204298,1756881071902,-480.0,0.00014142,2]
[383204302,1756881071937,-480.0,0.00014142,2]
[383204307,1756881071975,-428.45,0.00014142,2]
[383204312,1756881072010,-480.0,0.00014142,2]
[383204316,1756881072047,-480.0,0.00014227,2]
[383204320,1756881072083,-263.88,0.00014227,2]
[383204325,1756881072118,-592.45,0.00014227,2]
[383204330,1756881072157,-155.16,0.00014227,2]
[383204335,1756881072202,-782.6,0.00014227,2]
[383205124,1756881080223,-480.0,0.0001385,2]
[383205129,1756881080259,-480.0,0.0001386,2]
[383205134,1756881080296,-815.91,0.0001386,2]
[383205138,1756881080330,-495.46,0.00013867,2]
[383205143,1756881080364,-523.86996253,0.00013868,2]
[383205147,1756881080396,-585.40875723,0.00013868,2]
[383205151,1756881080429,-500.0,0.00013868,2]
[383205156,1756881080460,-500.0,0.00013868,2]
[383205160,1756881080494,-585.02062109,0.00013868,2]
[383205177,1756881080646,-1383.19,0.00013955,2]
[383205181,1756881080680,-1342.72,0.0001397,2]
[383205186,1756881080712,-515.51274216,0.00014124,2]
[383205190,1756881080743,-480.0,0.00014134,2]
[383205194,1756881080777,-815.91,0.00014134,2]
[383205199,1756881080810,-374.02742016,0.00014227,2]
[383205214,1756881080954,-177.28967536,0.00014227,2]
[383205219,1756881080989,-318.09,0.00014227,2]
[383205223,1756881081023,-468.0,0.00014227,2]
[383205227,1756881081057,-480.0,0.00014227,2]
[383205232,1756881081092,-480.0,0.00014229,2]
[383205236,1756881081127,-1383.19,0.00014229,2]
[383205241,1756881081162,-480.0,0.00014242,2]
[383205245,1756881081196,-480.0,0.00014242,2]
[383205250,1756881081231,-480.0,0.00014244,2]
[383205254,1756881081265,-205.49,0.00014244,2]
[383205271,1756881081428,-166.54,0.00014244,2]
[383205275,1756881081462,-480.0,0.00014244,2]
[383205280,1756881081494,-480.0,0.00014244,2]
[383205284,1756881081527,-480.0,0.00014244,2]
[383205288,1756881081559,-186.07,0.00014244,2]
[383205293,1756881081594,-151.189916,0.00014244,2]
[383205297,1756881081626,-189.08,0.00014244,2]
[383205301,1756881081657,-205.43,0.00014244,2]
[383205306,1756881081690,-486.74,0.00014244,2]
[383205310,1756881081722,-462.15,0.00014244,2]
[383205314,1756881081753,-480.0,0.00014244,2]
[383205318,1756881081786,-1122.890168,0.00014244,2]
[383206105,1756881090255,-1105.41263951,0.00014085,2]
[383206110,1756881090292,-219.829832,0.00014244,2]
[383206114,1756881090329,-151.0,0.00014246,2]
[383206119,1756881090364,-151.0,0.00014246,2]
[383206124,1756881090402,-300.0,0.00014247,2]
[383206129,1756881090441,-300.0,0.00014247,2]
[383206134,1756881090479,-300.0,0.00014247,2]
[383206139,1756881090515,-300.0,0.00014247,2]
[383206143,1756881090554,-300.0,0.00014247,2]
[383206148,1756881090592,-300.0,0.00014247,2]
[383206153,1756881090629,-300.0,0.00014247,2]
[383206158,1756881090667,-300.0,0.00014247,2]
[383206163,1756881090705,-300.0,0.00014247,2]
[383206168,1756881090741,-300.0,0.00014247,2]
[383206172,1756881090779,-300.0,0.00014247,2]
[383206187,1756881090914,-300.0,0.00014247,2]
[383206192,1756881090953,-300.0,0.00014247,2]
[383206197,1756881090991,-300.0,0.00014247,2]
[383206202,1756881091031,-300.0,0.00014247,2]
[383206207,1756881091072,-600.0,0.00014247,2]
[383206212,1756881091108,-213.90703604,0.00014247,2]
[383206216,1756881091142,-152.022693,0.00014247,2]
[383206221,1756881091176,-154.211638,0.00014247,2]
[383206225,1756881091209,-505.41445403,0.00014273,2]
[383206350,1756881092425,-1951.67324684,0.00014247,2]
[383207101,1756881100391,-1107.2233714,0.00013794,2]
[383207110,1756881100474,-480.0,0.00013867,2]
[383207119,1756881100553,-176.76183005,0.00013868,2]
[383207128,1756881100623,-500.0,0.00013868,2]
[383207135,1756881100685,-500.0,0.00013868,2]
[383207143,1756881100743,-221.85385831,0.00013868,2]
[383207150,1756881100803,-500.0,0.00013868,2]
[383207157,1756881100864,-411.79546095,0.00013868,2]
[383207165,1756881100928,-500.0,0.00013868,2]
[383207173,1756881100993,-500.0,0.00013868,2]
[383207209,1756881101332,-506.08263083,0.00013868,2]
[383207216,1756881101396,-1105.41263951,0.00013944,2]
[383207223,1756881101458,-480.0,0.00014141,2]
[383207262,1756881101838,336.55,0.00013867,2]
[383207300,1756881102204,480.0,0.00013852,2]
[383207393,1756881103131,167.76,0.00014245,2]
[383207420,1756881103600,500.0,0.00013868,2]
[383207424,1756881103672,500.0,0.00013868,2]
[383207432,1756881103739,500.0,0.00013868,2]
[383207440,1756881103805,500.0,0.00013868,2]
[383207448,1756881103877,500.0,0.00013868,2]
[383207457,1756881103947,572.61678457,0.00013868,2]
[383207497,1756881104334,500.0,0.00013868,2]
[383207505,1756881104399,500.0,0.00013868,2]
[383207513,1756881104464,500.0,0.00013868,2]
[383207522,1756881104536,260.09267475,0.00013868,2]
[383208049,1756881110628,-480.0,0.00013711,2]
[383208054,1756881110693,-480.0,0.0001385,2]
[383208059,1756881110755,-480.0,0.0001385,2]
[383208065,1756881110824,-480.0,0.0001386,2]
[383208070,1756881110887,-239.90732525,0.00013868,2]
[383208075,1756881110950,-500.0,0.00013868,2]
[383208080,1756881111018,-500.0,0.00013868,2]
[383208085,1756881111084,-500.0,0.00013868,2]
[383208091,1756881111150,-500.0,0.00013868,2]
[383208096,1756881111212,-341.56772875,0.00013868,2]
[383208102,1756881111291,-497.059892,0.00013868,2]
[383208113,1756881111425,-2.940108,0.00013868,2]
[383208114,1756881111483,-273.80125288,0.00013868,2]
[383208115,1756881111540,-500.0,0.00013868,2]
[383208116,1756881111598,-263.45836177,0.00013868,2]
[383208117,1756881111658,-500.0,0.00013868,2]
[383208118,1756881111717,-500.0,0.00013868,2]
[383208119,1756881111776,-500.0,0.00013868,2]
[383208122,1756881111837,-500.0,0.00013868,2]
[383208129,1756881111901,-257.1666087,0.00013868,2]
[383208136,1756881111966,-480.0,0.00014124,2]
[383208145,1756881112037,-480.0,0.00014124,2]
[383208153,1756881112106,-480.0,0.00014134,2]
[383208176,1756881112316,359.162928,0.00025,30]
[383208242,1756881112916,525.2773373,0.00013868,2]
[383208251,1756881112972,2509.06732785,0.00013868,2]
[383208359,1756881114013,160.0,0.00014085,2]
[383208360,1756881114103,359.162928,0.00013972,2]
[383208361,1756881114180,480.0,0.0001385,2]
[383208362,1756881114252,480.0,0.00014124,2]
[383208363,1756881114821,480.0,0.0001386,2]
[383208364,1756881115100,480.0,0.00014134,2]
[383208365,1756881115487,232.90165665,0.00014085,2]
[383208389,1756881116243,530.32150586,0.00014085,2]
[383208400,1756881116345,500.0,0.00013868,2]
[383208408,1756881116414,588.20453905,0.00013868,2]
[383208595,1756881118368,216.32867131,0.00013871,2]
[383208775,1756881120105,2984.02337128,0.00014105,2]
[383209740,1756881130436,-965.94,0.0001385,2]
[383209749,1756881130507,-480.0,0.00013867,2]
[383209758,1756881130581,-300.0,0.00014104,2]
[383209800,1756881130978,-401.54202354,0.00014105,2]
[383209827,1756881131231,-10000.01,0.00014105,2]
[383210624,1756881140424,-480.0,0.0001385,2]
[383210625,1756881140492,-661.41,0.00013852,2]
[383210626,1756881140558,-480.0,0.00013852,2]
[383210627,1756881140620,-480.0,0.0001386,2]
[383210628,1756881140684,-500.0,0.00013868,2]
[383210629,1756881140747,-258.27954969,0.00013868,2]
[383210631,1756881140810,-500.0,0.00013868,2]
[383210634,1756881140876,-500.0,0.00013868,2]
[383210638,1756881140944,-500.0,0.00013868,2]
[383210648,1756881141029,-500.0,0.00013868,2]
[383210689,1756881141403,-500.0,0.00013868,2]
[383210696,1756881141466,-500.0,0.00013868,2]
[383210704,1756881141526,-323.23816996,0.00013868,2]
[383210711,1756881141589,-500.0,0.00013868,2]
[383210719,1756881141651,-500.0,0.00013868,2]
[383210727,1756881141717,-500.0,0.00013868,2]
[383210734,1756881141782,-394.52563225,0.00013868,2]
[383210742,1756881141845,-500.0,0.00013868,2]
[383210750,1756881141907,-500.0,0.00013868,2]
[383210867,1756881143051,-280.63090062,0.0001386,2]
[383210868,1756881143109,-199.36909938,0.0001386,2]
[383210869,1756881143120,-1365.1132962,0.00013964,2]
[383210882,1756881150448,-480.0,0.0001385,2]
[383210883,1756881150510,-480.0,0.0001385,2]
[383210884,1756881150710,-592.91,0.00013852,2]
[383210885,1756881150771,-480.0,0.0001386,2]
[383210886,1756881150842,-541.47,0.0001386,2]
[383210887,1756881150905,-22.09389791,0.00013964,2]
[383210888,1756881151220,-4807.06220418,0.00013964,2]
[383210889,1756881151552,-399.609916,0.00013868,2]
[383210890,1756881151562,-480.0,0.00013968,2]
[383210891,1756881151571,-1388.65,0.0001397,2]
[383210892,1756881151579,-2538.80228818,0.00014105,2]
[383210893,1756881151630,-385.88559164,0.00014105,2]
[383210894,1756881160642,-480.0,0.00013711,2]
[383210895,1756881160715,-480.0,0.0001385,2]
[383210896,1756881160797,-480.0,0.00013852,2]
[383210897,1756881160877,-480.0,0.00013867,2]
[383210898,1756881160952,-213.44,0.00013953,2]
[383210899,1756881161034,-368.32,0.00013953,2]
[383210900,1756881161122,-601.45,0.00013953,2]
[383210901,1756881161199,-524.00848153,0.00014105,2]
[383210902,1756881161699,-2745.57303694,0.00014105,2]
[383210903,1756881170539,-480.0,0.00013721,2]
[383210904,1756881170614,-480.0,0.0001386,2]
[383210905,1756881170693,-480.0,0.0001386,2]
[383210906,1756881170765,-183.0,0.00013867,2]
[383210907,1756881170836,-965.94,0.00014124,2]
[383210908,1756881170907,-661.41,0.00014126,2]
[383210909,1756881170990,-480.0,0.00014126,2]
[383210910,1756881171062,-592.91,0.00014126,2]
[383210911,1756881171132,-480.0,0.00014126,2]
[383210912,1756881171203,-174.61267212,0.00014134,2]
[383210913,1756881171679,-44.26465576,0.00014134,2]
[383210914,1756881171744,-480.0,0.00014134,2]
[383210915,1756881171814,-480.0,0.00014141,2]
[383210916,1756881171880,-480.0,0.00014141,2]
[383210917,1756881171953,-1256.91203778,0.000142,2]
[383210918,1756881172029,-480.0,0.00014242,2]
[383210919,1756881172103,-1388.65,0.00014244,2]
[383210920,1756881177754,480.0,0.00013852,2]
[383210921,1756881178480,300.35661292,0.00014126,2]
[383210922,1756881178541,179.64338708,0.00014126,2]
[383210923,1756881180541,-9040.01,0.00014247,2]
[383210924,1756881180745,-10000.01,0.00014247,2]
[383210925,1756881180936,-10000.01,0.00014247,2]
[383210926,1756881181150,-10000.01,0.00014247,2]
[383210927,1756881181757,-991.72324684,0.00014247,2]
[383210928,1756881181833,-8016.56350632,0.00014247,2]
[383210929,1756881190523,-1495.86,0.00013852,2]
[383210930,1756881190595,-242.57,0.00013867,2]
[383210931,1756881190668,-499.62776068,0.00013953,2]
[383210932,1756881190736,-1495.86,0.00014126,2]
[383210933,1756881191026,-480.0,0.00013955,2]
[383210934,1756881191099,-4399.37785335,0.00014157,2]
[383210935,1756881191519,-241.2542933,0.00014157,2]
[383210936,1756881191607,-300.0,0.00014299,2]
[383210937,1756881191787,-2232.17447864,0.000143,2]
[383210938,1756881191871,-480.0,0.00014229,2]
[383210939,1756881192046,-61.2542933,0.000143,2]
[383210940,1756881192121,-8917.5014134,0.000143,2]
[383210941,1756881192197,-480.0,0.000143,2]
[383210942,1756881192270,-9040.01,0.000143,2]
[383210943,1756881208793,157.15,0.00012329,2]
[383210944,1756881219169,785.8,0.00012329,2]
[383210945,1756881260544,-1495.86,0.00013576,2]
[383210946,1756881260611,-1495.86,0.00013713,2]
[383210947,1756881260673,-614.90113783,0.00013794,2]
[383210948,1756881260736,-300.0,0.00013849,2]
[383210949,1756881260799,-480.0,0.0001385,2]
[383210950,1756881260861,-480.0,0.0001385,2]
[383210951,1756881269104,-480.87711289,0.0001385,2]
[383210952,1756881269162,-480.0,0.0001385,2]
[383210953,1756881269219,-482.17853753,0.0001385,2]
[383210954,1756881269279,-481.58576337,0.0001385,2]
[383210955,1756881269338,-480.0,0.0001385,2]
[383210956,1756881269392,-481.58527579,0.0001385,2]
[383210957,1756881269449,-482.37245541,0.0001385,2]
[383210958,1756881269505,-480.0,0.00013852,2]
[383210959,1756881269562,-534.53102797,0.00013852,2]
[383210960,1756881269615,-480.0,0.00013852,2]
[383210961,1756881275493,-483.13792894,0.0001385,2]
[383210962,1756881275557,-480.0,0.00013852,2]
[383210963,1756881275619,-480.0,0.00013852,2]
[383210964,1756881275684,-480.0,0.0001386,2]
[383210965,1756881275748,-480.0,0.0001386,2]
[383210966,1756881275828,-480.0,0.0001386,2]
[383210967,1756881275908,-480.0,0.00013867,2]
[383210968,1756881275970,-480.0,0.00013867,2]
[383210969,1756881276048,-480.0,0.00013867,2]
[383210970,1756881276117,-494.08,0.00013867,2]
[383210971,1756881284602,-483.13792894,0.00013711,2]
[383210972,1756881284661,-482.46715807,0.0001385,2]
[383210973,1756881284717,-480.58576037,0.0001385,2]
[383210974,1756881284776,-480.0,0.00013852,2]
[383210975,1756881284835,-480.0,0.00013867,2]
[383210976,1756881284894,-500.0,0.00013867,2]
[383210977,1756881284952,-500.0,0.00013867,2]
[383210978,1756881285013,-500.0,0.00013867,2]
[383210979,1756881285079,-485.44339152,0.00013867,2]
[383210980,1756881285139,-500.0,0.00013868,2]
[383210981,1756881285728,-216.7415222,0.00013574,2]
[383210983,1756881295607,-266.39640674,0.00013574,2]
[383210984,1756881295669,-480.90247383,0.0001385,2]
[383210985,1756881295740,-482.45266879,0.0001385,2]
[383210986,1756881295803,-480.0,0.0001385,2]
[383210987,1756881295866,-662.59,0.00013852,2]
[383210988,1756881295928,-437.53850843,0.0001386,2]
[383210989,1756881296000,-480.0,0.00013867,2]
[383210990,1756881296071,-481.73994782,0.00013867,2]
[383210991,1756881296710,-2456.76998878,0.00013868,2]
[383210992,1756881296790,-10000.01,0.00013868,2]
[383210993,1756881296862,-10000.01,0.00013868,2]
[383210994,1756881296924,-10000.01,0.00013868,2]
[383210995,1756881296972,-10000.01,0.00013868,2]
[383210996,1756881297046,-480.0,0.0001385,2]
[383210997,1756881297108,-1496.81998878,0.00013868,2]
[383210998,1756881297220,-6046.37002244,0.00013868,2]
[383210999,1756881315637,-482.02732834,0.00013591,2]
[383211000,1756881315716,-482.02732834,0.00013728,2]
[383211001,1756881315790,-482.02732834,0.00013867,2]
[383211002,1756881315856,-480.0,0.00013867,2]
[383211003,1756881315922,-482.49278344,0.00013867,2]
[383211004,1756881315990,-500.0,0.00013868,2]
[383211005,1756881316058,-500.0,0.00013868,2]
[383211006,1756881316126,-500.0,0.00013868,2]
[383211007,1756881316190,-500.0,0.00013868,2]
[383211008,1756881316253,-500.0,0.00013868,2]
[383211009,1756881316499,-567.22411062,0.00013867,2]
[383211010,1756881316562,-500.0,0.00013868,2]
[383211011,1756881316628,-500.0,0.00013868,2]
[383211012,1756881316693,-500.0,0.00013868,2]
[383211013,1756881316777,-500.0,0.00013868,2]
[383211014,1756881316859,-500.0,0.00013868,2]
[383211015,1756881316930,-500.0,0.00013868,2]
[383211016,1756881317001,-500.0,0.00013868,2]
[383211017,1756881317075,-500.0,0.00013868,2]
[383211018,1756881317145,-288.56177876,0.00013868,2]
[383211019,1756881318444,-288.43822124,0.00013868,2]
[383211020,1756881318454,-182.86046308,0.00013868,2]
[383211021,1756881321566,206.0,0.00027397,120]
[383211022,1756881345711,-480.0,0.00013591,2]
[383211023,1756881345784,-480.0,0.00013728,2]
[383211024,1756881345859,-480.0,0.0001385,2]
[383211025,1756881345924,-480.0,0.0001385,2]
[383211026,1756881346001,-480.0,0.0001385,2]
[383211027,1756881346075,-157.34437846,0.00013852,2]
[383211028,1756881346159,-480.0,0.0001386,2]
[383211029,1756881346644,-3925.32124308,0.00013861,2]
[383211030,1756881346732,-10000.01,0.00013861,2]
[383211031,1756881346794,-10000.01,0.00013861,2]
[383211032,1756881346856,-10000.01,0.00013861,2]
[383211033,1756881346921,-10000.01,0.00013861,2]